bitfinex/quotes_ETHUSD_20230831
["timestamp","ask_amount","ask_price","bid_price","bid_amount"]
[1693499343601,5.8657433,1683.1,1682.9,0.002]
[1693499343751,5.8657433,1683.1,1682.8,0.002]
[1693499343950,2.9277433,1683.1,1682.8,0.002]
[1693499344182,2.9277433,1683.1,1682.9,1.00376496]
[1693499345498,3.0,1683.2,1682.9,1.00376496]
[1693499345788,5.9277433,1683.2,1682.9,1.00576496]
[1693499346881,5.9277433,1683.2,1682.9,0.002]
[1693499347120,5.9277433,1683.2,1682.8,0.002]
[1693499347265,5.9277433,1683.2,1682.9,1.00376496]
[1693499347468,5.9277433,1683.2,1682.9,1.00576496]
[1693499347877,3.226365,1683.4,1682.9,1.00576496]
[1693499348077,33.538,1683.7,1683.3,1.00376496]
[1693499348282,5.9277433,1683.6,1683.4,0.002]
[1693499348611,5.9277433,1683.6,1683.3,1.00576496]
[1693499350381,5.9277433,1683.6,1683.3,0.002]
[1693499350724,5.9277433,1683.6,1683.1,0.002]
[1693499351279,9.17,1683.5,1683.1,0.002]
[1693499351579,5.9277433,1683.4,1683.0,1.00376496]
[1693499351787,5.9277433,1683.4,1683.1,0.002]
[1693499351973,12.1597433,1683.4,1683.1,0.002]
[1693499352379,12.1597433,1683.4,1682.9,0.002]
[1693499354081,15.1057433,1683.4,1682.9,0.002]
[1693499354683,0.48,1683.3,1682.9,0.002]
[1693499354886,2.9277433,1683.2,1682.9,0.002]
[1693499355299,3.0,1683.1,1682.9,0.002]
[1693499355503,5.9277433,1683.1,1682.8,1.00576496]
[1693499357380,7.9907433,1683.1,1682.8,1.00576496]
[1693499358792,7.9907433,1683.1,1682.8,0.002]
[1693499358997,2.063,1682.9,1682.8,0.002]
[1693499359197,5.063,1682.9,1682.7,0.1]
[1693499359523,2.9277433,1682.8,1682.7,0.1]
[1693499359687,12.1597433,1682.8,1682.7,0.1]
[1693499360222,5.9277433,1682.8,1682.7,0.1]
[1693499360388,3.0,1682.8,1682.7,0.1]
[1693499360591,2.063,1682.9,1682.7,0.1]
[1693499360915,4.9907433,1682.9,1682.7,0.1]
[1693499361288,3.0,1682.8,1682.7,0.1]
[1693499361612,2.063,1682.9,1682.7,0.1]
[1693499361814,7.237765,1683.2,1682.8,1.00376496]
[1693499361815,3.068765,1683.2,1682.8,1.00376496]
[1693499362014,2.063,1683.3,1683.0,1.00376496]
[1693499362211,2.063,1683.2,1683.0,1.00576496]
[1693499362542,2.063,1683.2,1683.0,1.00376496]
[1693499363406,5.063,1683.2,1683.0,1.00376496]
[1693499363603,5.9277433,1683.3,1683.0,1.00376496]
[1693499363802,3.0,1683.2,1683.0,1.00576496]
[1693499364034,2.6795381,1683.5,1683.0,1.00376496]
[1693499364341,2.6795381,1683.5,1682.7,0.1]
[1693499364342,4.92397834,1683.3,1682.7,0.1]
[1693499364507,0.61780412,1683.2,1682.7,0.1]
[1693499364703,6.232,1683.0,1682.7,0.1]
[1693499364942,6.232,1682.8,1682.7,0.1]
[1693499365143,9.63511932,1682.8,1682.7,0.1]
[1693499365342,13.73292344,1682.8,1682.7,0.1]
[1693499366046,15.66339462,1682.8,1682.7,0.1]
[1693499366440,17.72639462,1682.8,1682.7,0.1]
[1693499366827,16.79975245,1682.8,1682.7,0.1]
[1693499367025,16.32437643,1682.8,1682.7,0.1]
[1693499367238,18.32061147,1682.8,1682.7,0.1]
[1693499367435,19.10482554,1682.8,1682.6,0.1]
[1693499367646,13.25757161,1682.7,1682.6,0.1]
[1693499368726,14.7027433,1682.7,1682.6,0.1]
[1693499369627,3.0,1682.7,1682.6,0.1]
[1693499369827,3.066765,1682.8,1682.6,0.1]
[1693499370151,4.9907433,1682.8,1682.6,0.1]
[1693499370553,2.063,1682.7,1682.6,0.1]
[1693499371221,11.295,1682.7,1682.6,0.1]
[1693499371426,11.77037602,1682.7,1682.6,0.1]
[1693499371729,12.25037602,1682.7,1682.6,0.1]
[1693499372325,15.17811932,1682.7,1682.6,0.1]
[1693499372927,16.18188432,1682.7,1682.6,0.1]
[1693499376036,8.295,1682.5,1682.4,0.002]
[1693499376289,0.47537602,1682.4,1681.9,0.1]
[1693499376559,8.295,1682.0,1681.9,0.1]
[1693499376729,15.75735436,1682.0,1681.3,1.00376496]
[1693499376934,2.063,1681.5,1681.3,1.00376496]
[1693499377126,2.063,1681.6,1681.3,1.00376496]
[1693499378065,2.063,1681.8,1681.5,1.00376496]
[1693499378268,4.9907433,1681.8,1681.5,1.00376496]
[1693499378428,3.0,1681.7,1681.5,1.00376496]
[1693499378942,2.063,1681.8,1681.5,1.00376496]
[1693499379145,5.063,1681.9,1681.7,1.00376496]
[1693499379455,3.0,1681.8,1681.7,1.00376496]
[1693499379640,2.063,1681.9,1681.7,1.00376496]
[1693499379846,2.063,1681.8,1681.7,1.00376496]
[1693499380528,0.004,1682.0,1681.9,1.00376496]
[1693499380763,4.444262,1682.3,1681.9,1.00376496]
[1693499380764,0.004,1682.2,1681.9,1.00376496]
[1693499381330,2.067,1682.2,1681.9,1.00376496]
[1693499381661,0.004,1682.2,1681.9,1.00376496]
[1693499382658,0.004,1682.4,1681.9,1.00376496]
[1693499382829,2.9317433,1682.4,1681.9,1.00376496]
[1693499383029,0.004,1682.3,1681.9,1.00376496]
[1693499383331,3.004,1682.3,1681.9,1.00376496]
[1693499383531,0.004,1682.2,1681.9,1.00376496]
[1693499383731,0.004,1682.2,1682.1,1.00376496]
[1693499384039,3.004,1682.4,1682.3,1.00376496]
[1693499384256,3.0,1682.5,1682.3,1.00376496]
[1693499384464,3.004,1682.6,1682.3,1.00376496]
[1693499384966,5.8767433,1682.5,1682.1,1.00376496]
[1693499385165,3.004,1682.4,1682.3,1.00376496]
[1693499385358,3.0,1682.4,1682.3,1.00376496]
[1693499388764,0.004,1682.6,1682.5,1.00376496]
[1693499388940,34.75128111,1682.9,1682.5,1.00376496]
[1693499388941,3.004,1682.8,1682.5,1.00376496]
[1693499390738,0.004,1682.8,1682.7,1.00376496]
[1693499390939,3.0,1682.9,1682.7,1.00376496]
[1693499391465,5.004,1683.0,1682.9,1.00376496]
[1693499391677,8.0,1683.0,1682.9,1.00376496]
[1693499395872,8.0,1683.0,1682.7,1.00376496]
[1693499396210,8.47937602,1683.0,1682.7,1.00376496]
[1693499396910,3.0,1682.9,1682.7,1.00376496]
[1693499397059,5.9277433,1682.9,1682.7,1.00376496]
[1693499397256,5.9277433,1682.9,1682.4,2.1533]
[1693499397257,9.35211932,1682.9,1682.4,3.15706496]
[1693499397633,0.47937602,1682.8,1682.4,3.15706496]
[1693499397899,2.9317433,1682.7,1682.4,3.15706496]
[1693499398100,2.9317433,1682.7,1682.4,1.00376496]
[1693499398101,3.47537602,1682.6,1682.4,1.00376496]
[1693499398268,3.0,1682.6,1682.4,1.00376496]
[1693499398670,0.004,1682.7,1682.4,1.00376496]
[1693499399058,3.004,1682.7,1682.4,1.00376496]
[1693499399959,3.0,1682.6,1682.4,1.00376496]
[1693499400284,0.004,1682.7,1682.4,1.00376496]
[1693499400490,0.004,1682.7,1682.6,1.00376496]
[1693499400673,2.9277433,1682.7,1682.6,1.00376496]
[1693499400875,5.9277433,1682.7,1682.6,1.00376496]
[1693499401065,6.40311932,1682.7,1682.4,1.00376496]
[1693499401386,5.8767433,1682.6,1682.2,1.00376496]
[1693499401562,0.004,1682.5,1682.2,1.00376496]
[1693499401766,2.9277433,1682.4,1682.2,1.00376496]
[1693499402380,5.8767433,1682.4,1682.0,1.00376496]
[1693499402551,3.004,1682.3,1682.0,1.00376496]
[1693499402893,2.949,1682.1,1682.0,1.00376496]
[1693499403186,2.949,1682.1,1681.6,1.9866]
[1693499403187,8.8767433,1682.1,1681.8,1.00376496]
[1693499403387,2.953,1682.1,1682.0,1.00376496]
[1693499403586,8.8767433,1682.1,1682.0,1.00376496]
[1693499404077,9.3567433,1682.1,1681.6,1.00376496]
[1693499404282,2.949,1681.9,1681.6,1.00376496]
[1693499404479,2.949,1681.7,1681.4,0.002]
[1693499404704,5.9277433,1681.6,1681.4,0.002]
[1693499404991,5.9277433,1681.6,1681.3,1.00576496]
[1693499405163,5.9277433,1681.6,1681.3,0.002]
[1693499405365,2.949,1681.5,1681.2,0.002]
[1693499405567,2.9277433,1681.4,1681.2,0.002]
[1693499405770,2.9277433,1681.4,1681.1,1.10576496]
[1693499406161,2.9277433,1681.4,1681.3,1.00376496]
[1693499406587,2.949,1681.5,1681.3,1.00376496]
[1693499406780,5.8767433,1681.5,1681.3,1.00376496]
[1693499407282,3.0,1681.6,1681.3,1.00376496]
[1693499407483,5.8767433,1681.5,1681.3,0.002]
[1693499407726,5.8767433,1681.5,1681.2,0.002]
[1693499408013,3.0,1681.4,1681.2,0.002]
[1693499408213,5.9277433,1681.4,1681.1,1.10576496]
[1693499408387,12.1597433,1681.4,1681.1,1.10576496]
[1693499408589,5.9277433,1681.4,1681.1,1.10576496]
[1693499409131,3.0,1681.4,1681.3,1.00376496]
[1693499409428,2.312,1681.9,1681.5,1.00376496]
[1693499409584,2.9277433,1681.8,1681.5,1.00376496]
[1693499409780,5.8767433,1681.8,1681.5,1.00376496]
[1693499410231,5.8767433,1681.8,1681.4,0.002]
[1693499410917,3.0,1681.7,1681.4,0.002]
[1693499411121,6.3567433,1681.6,1681.2,0.002]
[1693499411416,3.0,1681.5,1681.3,1.00376496]
[1693499411616,2.9277433,1681.4,1681.3,1.00376496]
[1693499411822,5.9277433,1681.4,1681.3,1.00376496]
[1693499412182,2.92813982,1681.9,1681.2,1.00376496]
[1693499412183,2.312,1681.9,1681.2,1.00376496]
[1693499412389,2.312,1681.9,1681.5,1.00376496]
[1693499412698,2.9277433,1681.8,1681.5,1.00376496]
[1693499413110,3.0,1681.7,1681.5,1.00576496]
[1693499413304,3.0,1681.7,1681.5,1.00376496]
[1693499415129,5.9277433,1681.7,1681.5,1.00376496]
[1693499415328,5.9277433,1681.7,1681.4,0.002]
[1693499415899,5.8767433,1681.6,1681.4,0.002]
[1693499416097,3.0,1681.5,1681.3,1.00576496]
[1693499416326,2.312,1681.9,1681.5,1.00376496]
[1693499416525,2.9277433,1681.8,1681.5,1.00376496]
[1693499416890,2.9277433,1681.8,1681.5,1.00576496]
[1693499418030,2.9277433,1681.8,1681.5,0.002]
[1693499418031,12.58411932,1681.8,1681.5,0.002]
[1693499418236,12.58411932,1681.8,1681.6,1.00376496]
[1693499418237,3.0,1681.7,1681.6,1.00376496]
[1693499418411,5.9277433,1681.7,1681.6,1.00376496]
[1693499418608,5.9277433,1681.7,1681.4,1.00576496]
[1693499418811,5.9277433,1681.7,1681.6,1.00376496]
[1693499420132,5.9277433,1681.7,1681.4,0.002]
[1693499420133,13.11511932,1681.7,1681.4,0.002]
[1693499420309,9.63511932,1681.6,1681.2,0.002]
[1693499420515,5.949,1681.5,1681.2,0.002]
[1693499420715,8.8767433,1681.5,1681.2,0.002]
[1693499421539,5.949,1681.5,1681.2,0.002]
[1693499421738,3.0,1681.5,1681.4,1.00376496]
[1693499421938,5.261,1681.6,1681.4,1.00376496]
[1693499422122,8.1887433,1681.6,1681.4,1.00376496]
[1693499422321,3.0,1681.6,1681.4,1.00376496]
[1693499422936,3.0,1681.8,1681.4,1.00376496]
[1693499423128,3.0,1681.8,1681.5,0.002]
[1693499424653,5.9277433,1681.8,1681.5,0.002]
[1693499424958,0.47537602,1681.7,1681.5,0.002]
[1693499425274,0.47537602,1681.7,1681.4,1.00376496]
[1693499425658,3.42437602,1681.7,1681.4,0.002]
[1693499425859,3.42437602,1681.7,1681.3,0.002]
[1693499425860,6.35211932,1681.7,1681.3,0.002]
[1693499426162,6.35211932,1681.7,1681.2,0.002]
[1693499426163,2.949,1681.4,1681.2,0.002]
[1693499426460,9.181,1681.5,1681.1,0.1]
[1693499426461,15.58411932,1681.3,1681.1,0.102]
[1693499426761,15.58411932,1681.3,1681.1,0.1]
[1693499427259,9.35211932,1681.3,1681.1,0.1]
[1693499427562,9.8805083,1681.3,1681.1,0.1]
[1693499427726,4.003765,1681.3,1681.1,1.10376496]
[1693499428056,3.0,1681.2,1681.1,1.10376496]
[1693499428255,3.0,1681.4,1681.1,1.10376496]
[1693499428461,3.0,1681.4,1681.1,1.10576496]
[1693499428845,6.232,1681.2,1681.1,0.102]
[1693499429023,6.232,1681.2,1680.9,0.002]
[1693499429024,15.5887433,1681.2,1680.9,0.002]
[1693499429226,9.181,1681.0,1680.6,0.002]
[1693499429445,5.9277433,1680.9,1680.7,1.00376496]
[1693499429645,5.9277433,1680.9,1680.6,0.002]
[1693499429848,5.9277433,1680.9,1680.8,1.00376496]
[1693499430156,5.9277433,1680.9,1680.1,0.1]
[1693499430157,6.232,1680.5,1680.1,0.1]
[1693499430345,9.181,1680.2,1680.1,0.1]
[1693499430554,15.1087433,1680.2,1680.1,0.1]
[1693499430728,15.58411932,1680.2,1680.1,0.1]
[1693499430924,3.0,1680.2,1680.1,0.1]
[1693499431135,3.0,1680.3,1680.1,0.1]
[1693499431561,1.99623504,1680.8,1680.1,0.1]
[1693499431562,4.8465,1680.9,1680.3,1.00376496]
[1693499431760,5.1578,1680.9,1680.3,1.00376496]
[1693499431928,2.949,1680.7,1680.3,1.00376496]
[1693499432128,2.949,1680.5,1680.3,1.00376496]
[1693499432462,5.8767433,1680.5,1680.3,1.00376496]
[1693499432665,5.8767433,1680.5,1680.1,1.10376496]
[1693499433065,5.8767433,1680.5,1680.2,0.002]
[1693499433444,5.8767433,1680.5,1680.4,1.00376496]
[1693499433626,8.8767433,1680.5,1680.2,1.00376496]
[1693499433832,5.8767433,1680.5,1680.4,1.00376496]
[1693499434163,8.8767433,1680.5,1680.4,1.00376496]
[1693499434464,8.8767433,1680.5,1680.1,1.10576496]
[1693499434666,5.949,1680.5,1680.4,1.00376496]
[1693499434966,3.0,1680.5,1680.4,1.00376496]
[1693499435428,3.0,1680.6,1680.4,1.00376496]
[1693499435965,8.8257433,1680.5,1680.1,1.10576496]
[1693499436153,2.949,1680.3,1680.2,0.002]
[1693499436339,3.0,1680.3,1680.1,1.10376496]
[1693499436559,7.21673504,1680.8,1680.1,0.1]
[1693499436560,3.0,1680.4,1680.1,0.1]
[1693499436880,3.0,1680.6,1680.3,1.00376496]
[1693499437082,0.006,1680.7,1680.6,1.00376496]
[1693499437248,2.955,1680.9,1680.6,1.00376496]
[1693499437579,2.949,1680.7,1680.2,2.0757]
[1693499437803,2.949,1680.5,1680.2,1.00376496]
[1693499438382,5.8767433,1680.5,1680.1,1.10576496]
[1693499438569,2.949,1680.3,1680.2,0.002]
[1693499438769,2.949,1680.3,1680.1,1.10376496]
[1693499438770,5.949,1680.3,1680.1,1.10376496]
[1693499439085,5.949,1680.2,1680.1,0.1]
[1693499439283,10.87297834,1680.2,1679.9,0.002]
[1693499439458,5.898,1680.0,1679.6,0.002]
[1693499439661,2.949,1679.8,1679.6,0.002]
[1693499439867,5.8767433,1679.8,1679.5,1.00576496]
[1693499440049,2.949,1679.6,1679.5,0.002]
[1693499440247,2.949,1679.5,1679.3,0.015]
[1693499440570,2.949,1679.5,1678.7,0.0055686]
[1693499440571,14.63597834,1679.4,1678.7,0.0055686]
[1693499440748,2.949,1678.8,1678.7,0.0055686]
[1693499441148,5.949,1679.0,1678.8,1.00376496]
[1693499441386,3.3000706,1679.4,1679.2,1.00376496]
[1693499441387,2.949,1679.3,1679.2,1.00376496]
[1693499441561,8.8767433,1679.3,1678.9,1.00376496]
[1693499441763,2.949,1679.1,1678.9,1.00376496]
[1693499441960,2.949,1679.1,1678.7,1.00933356]
[1693499441961,5.9277433,1679.0,1678.7,1.00933356]
[1693499442179,2.949,1678.9,1678.7,0.0055686]
[1693499442361,3.0,1678.8,1678.7,0.0055686]
[1693499442693,8.40397834,1678.8,1677.3,1.00376496]
[1693499442893,1.99623504,1678.0,1677.1,1.687061]
[1693499443052,0.31510306,1677.0,1676.8,2.28906199]
[1693499443252,0.31510306,1677.0,1676.3,0.92843234]
[1693499443480,5.0,1676.7,1676.2,2.07027596]
[1693499443684,10.10943234,1676.3,1676.2,0.18123805]
[1693499443991,14.8567433,1676.3,1675.6,3.0]
[1693499444201,0.31510306,1677.0,1676.7,2.9]
[1693499444510,0.31510306,1677.0,1676.4,6.0]
[1693499444511,5.08539338,1678.1,1677.5,2.9]
[1693499444707,0.1,1677.9,1676.8,0.59245337]
[1693499445003,0.1,1677.0,1676.2,2.9]
[1693499445206,9.04,1677.8,1676.2,2.9]
[1693499445207,11.924,1676.9,1676.6,2.9]
[1693499445393,11.924,1676.9,1676.0,6.0]
[1693499445394,0.01922543,1676.8,1676.0,6.0]
[1693499445597,2.949,1677.1,1676.2,6.0]
[1693499445788,6.23022588,1678.2,1676.5,6.0]
[1693499445982,6.23022588,1678.2,1675.8,60.19040452]
[1693499445983,0.62302259,1678.1,1677.2,2.949]
[1693499446182,1.23022588,1678.2,1677.4,2.949]
[1693499446384,2.0,1678.1,1677.0,2.949]
[1693499446707,4.23022588,1678.2,1677.0,2.949]
[1693499446708,1.23022588,1678.2,1677.0,2.949]
[1693499446908,1.23022588,1678.2,1677.2,2.949]
[1693499447109,1.23022588,1678.2,1677.5,6.0]
[1693499447335,2.0,1678.0,1677.0,2.949]
[1693499447544,5.0,1677.3,1677.0,0.59245337]
[1693499447676,5.0,1677.3,1676.5,2.951]
[1693499447677,2.0,1677.5,1676.5,0.002]
[1693499447876,0.002,1677.4,1676.8,2.949]
[1693499448099,0.002,1677.6,1676.8,8.949]
[1693499448410,1.23022588,1678.2,1677.4,8.949]
[1693499448411,0.002,1677.9,1677.4,8.949]
[1693499448598,0.002,1678.1,1677.6,6.0]
[1693499448909,0.002,1678.1,1677.8,6.0]
[1693499449211,0.002,1678.1,1677.0,2.949]
[1693499449212,0.002,1678.1,1678.0,11.898]
[1693499449421,2.0,1679.2,1678.0,16.0878]
[1693499449422,0.002,1678.9,1678.0,16.0878]
[1693499449581,3.0,1679.6,1678.4,2.949]
[1693499449911,0.002,1679.4,1678.8,2.949]
[1693499450114,0.002,1679.6,1679.0,2.949]
[1693499450332,3.0,1679.8,1679.0,3.2919]
[1693499450511,3.0,1679.8,1678.8,9.0]
[1693499450512,3.0,1679.5,1679.1,2.7873]
[1693499450674,0.002,1679.4,1679.1,2.7873]
[1693499450875,3.002,1679.4,1679.1,2.7873]
[1693499451417,3.0,1679.2,1678.5,2.949]
[1693499451633,3.0,1678.9,1678.5,2.7873]
[1693499451837,0.002,1678.8,1678.5,2.7873]
[1693499452134,0.002,1679.0,1678.5,5.7363]
[1693499452431,0.002,1679.0,1678.9,2.949]
[1693499452633,3.0,1679.6,1678.9,2.949]
[1693499452930,0.002,1679.5,1678.7,2.949]
[1693499453143,2.949,1679.0,1677.7,6.002]
[1693499453297,3.0,1678.8,1677.8,0.002]
[1693499453502,3.002,1678.7,1677.7,0.002]
[1693499453709,0.3022,1678.6,1677.7,0.002]
[1693499454002,0.002,1678.5,1678.0,6.0]
[1693499454200,0.002,1679.1,1678.1,2.949]
[1693499454401,0.002,1679.1,1678.0,6.0]
[1693499454402,0.002,1679.1,1678.3,2.949]
[1693499454628,3.0,1679.0,1678.0,2.949]
[1693499454823,0.002,1678.9,1678.0,2.899]
[1693499455221,0.002,1678.9,1677.8,0.002]
[1693499455222,3.0,1678.6,1677.8,9.181]
[1693499455536,0.002,1678.5,1677.8,2.949]
[1693499455721,0.002,1678.6,1677.8,2.949]
[1693499455928,0.3022,1678.6,1677.8,2.949]
[1693499456114,0.3022,1678.6,1677.6,2.951]
[1693499456115,0.002,1678.5,1678.0,2.949]
[1693499456312,0.002,1678.5,1678.2,2.949]
[1693499456533,0.002,1679.0,1678.2,2.949]
[1693499456735,0.002,1679.3,1678.2,2.949]
[1693499456944,0.51857,1679.3,1678.6,2.949]
[1693499457103,0.002,1679.2,1678.6,2.949]
[1693499457301,0.002,1679.5,1678.6,2.949]
[1693499457535,3.0,1679.4,1678.6,2.949]
[1693499457701,0.002,1679.3,1678.6,2.949]
[1693499458137,0.002,1679.3,1678.4,32.909]
[1693499458138,3.0,1679.0,1678.4,2.309]
[1693499458443,0.002,1678.9,1678.4,2.309]
[1693499458619,0.002,1679.1,1678.5,2.949]
[1693499458814,3.0,1679.4,1678.5,2.949]
[1693499458815,0.002,1679.3,1678.5,2.949]
[1693499459022,0.002,1679.3,1678.7,2.949]
[1693499459238,3.0,1679.6,1678.7,2.949]
[1693499459239,0.002,1679.5,1678.7,2.949]
[1693499459540,0.3022,1679.5,1678.8,0.48]
[1693499459753,0.002,1679.4,1678.8,0.48]
[1693499460063,0.002,1679.4,1678.7,2.949]
[1693499460441,3.002,1679.4,1678.5,2.949]
[1693499460642,0.002,1679.3,1678.5,2.949]
[1693499460839,0.002,1679.3,1678.4,2.309]
[1693499460840,3.0,1678.8,1678.4,2.309]
[1693499461160,0.002,1678.7,1678.4,2.309]
[1693499461322,3.0,1679.1,1678.2,2.949]
[1693499461323,0.002,1679.0,1678.2,2.949]
[1693499461527,0.3022,1679.0,1678.2,2.949]
[1693499461724,3.0,1678.7,1678.0,2.949]
[1693499461930,0.002,1678.6,1678.0,5.8767433]
[1693499462231,0.002,1678.6,1678.1,2.9277433]
[1693499462525,0.002,1678.6,1678.0,2.949]
[1693499462725,0.3022,1678.6,1678.0,5.8767433]
[1693499462937,0.002,1678.5,1678.0,5.8767433]
[1693499463140,0.002,1678.5,1678.1,2.9277433]
[1693499463338,0.002,1678.8,1678.1,2.9277433]
[1693499463541,0.84050472,1679.3,1678.3,2.949]
[1693499463542,0.002,1678.9,1678.3,2.949]
[1693499463743,2.949,1679.6,1678.7,2.949]
[1693499463744,0.002,1679.2,1678.7,2.949]
[1693499463942,0.002,1679.5,1678.8,2.9277433]
[1693499464567,0.002,1679.5,1678.9,3.429]
[1693499464883,0.002,1679.8,1679.1,2.949]
[1693499465031,0.302,1679.8,1679.2,2.9277433]
[1693499465366,0.002,1679.7,1679.3,2.949]
[1693499465535,0.002,1679.7,1679.4,2.9277433]
[1693499465737,0.002,1679.7,1679.0,5.949]
[1693499465738,0.002,1680.2,1679.6,2.949]
[1693499465933,0.002,1680.2,1679.8,2.9277433]
[1693499466169,3.0,1680.4,1679.9,0.48]
[1693499466328,0.002,1680.3,1679.9,0.48]
[1693499466531,0.101,1680.3,1680.2,2.949]
[1693499466750,0.101,1680.3,1680.2,6.3567433]
[1693499466989,3.101,1681.1,1680.2,6.3567433]
[1693499466990,0.002,1680.8,1680.2,6.3567433]
[1693499467300,0.3121,1681.0,1680.3,2.9277433]
[1693499467455,0.002,1680.9,1680.3,2.9277433]
[1693499467649,0.002,1681.0,1680.3,2.9277433]
[1693499467846,0.002,1681.0,1680.4,0.48]
[1693499468047,0.002,1681.0,1680.5,2.9277433]
[1693499468351,3.0,1680.8,1679.9,0.002]
[1693499468550,0.54030472,1680.9,1679.7,0.002]
[1693499468551,3.0,1680.6,1679.7,0.002]
[1693499468769,0.002,1680.5,1679.7,0.002]
[1693499468969,3.0,1680.2,1679.7,0.002]
[1693499469151,0.54030472,1680.1,1679.1,0.002]
[1693499469774,3.0,1679.8,1679.1,0.002]
[1693499469972,3.0,1679.6,1679.0,0.002]
[1693499470260,3.0,1679.6,1678.7,0.002]
[1693499470261,3.0,1679.4,1678.7,0.002]
[1693499470463,3.0,1679.4,1678.5,0.002]
[1693499470893,5.9277433,1679.4,1678.5,0.002]
[1693499471059,0.59277433,1679.3,1678.5,0.002]
[1693499471258,2.9277433,1679.2,1678.5,0.002]
[1693499471457,3.0,1678.9,1678.2,0.002]
[1693499471703,3.0,1678.9,1677.9,30.6]
[1693499471704,3.0,1678.9,1678.0,0.002]
[1693499471861,0.3,1678.9,1678.1,3.692]
[1693499472066,2.2752,1679.2,1678.2,0.002]
[1693499472267,2.2752,1679.2,1678.4,3.692]
[1693499472462,3.0,1679.5,1678.5,0.002]
[1693499472463,3.002,1679.5,1678.5,0.002]
[1693499472694,3.0,1679.3,1678.5,0.002]
[1693499472860,0.3,1679.2,1678.5,0.3714]
[1693499473064,5.2772,1679.5,1678.6,0.482]
[1693499473264,0.002,1679.4,1678.7,0.002]
[1693499473774,3.0,1678.9,1678.7,0.002]
[1693499473977,0.3,1678.8,1678.3,0.002]
[1693499474485,3.0,1679.2,1678.2,0.002]
[1693499474690,3.0,1679.2,1678.3,2.9277433]
[1693499474887,2.1506,1679.1,1678.5,2.9277433]
[1693499475232,3.002,1679.4,1678.6,0.002]
[1693499475364,3.0,1679.1,1678.6,2.9297433]
[1693499475567,3.0,1679.1,1678.7,0.002]
[1693499476122,3.0,1678.9,1678.7,0.002]
[1693499476263,3.0,1678.9,1677.9,30.6]
[1693499476264,3.0,1678.7,1678.2,0.002]
[1693499476469,3.0,1678.7,1677.8,0.002]
[1693499476766,3.0,1678.9,1677.9,9.1597433]
[1693499476982,3.0,1678.7,1678.0,0.002]
[1693499477198,3.0,1678.7,1678.1,9.1597433]
[1693499477363,3.0,1678.7,1678.2,0.002]
[1693499477567,3.0,1678.7,1678.3,2.9277433]
[1693499477770,3.0,1678.7,1678.4,0.002]
[1693499478097,3.0,1679.1,1678.0,0.002]
[1693499478098,3.3,1678.6,1678.0,0.002]
[1693499478262,3.3,1678.6,1678.1,2.9277433]
[1693499478466,2.1253,1678.5,1678.2,0.002]
[1693499479000,3.0,1678.3,1678.2,0.002]
[1693499479300,3.0,1677.8,1677.7,0.002]
[1693499479502,3.0,1677.8,1676.3,49.02979134]
[1693499479503,3.0,1677.6,1676.3,30.6]
[1693499479705,3.0,1677.6,1676.3,30.7]
[1693499479706,5.9277433,1677.6,1676.3,30.7]
[1693499479893,0.3,1677.8,1676.8,3.692]
[1693499480068,3.3,1677.8,1676.9,0.3692]
[1693499480577,3.0,1678.2,1676.9,0.3692]
[1693499480578,2.1766,1678.1,1676.9,0.3692]
[1693499480799,2.1766,1678.1,1677.1,3.692]
[1693499481099,3.0,1678.4,1677.1,9.924]
[1693499481276,3.0,1678.4,1677.4,3.692]
[1693499481476,3.3,1678.4,1677.5,0.3692]
[1693499481893,3.3,1678.4,1677.6,0.48]
[1693499482095,3.0,1678.0,1677.2,0.5882]
[1693499482294,3.54030472,1678.0,1677.0,3.0]
[1693499482620,3.0,1677.7,1677.1,0.002]
[1693499482823,0.004,1677.6,1677.0,0.002]
[1693499482989,0.004,1677.6,1676.8,0.002]
[1693499482990,3.004,1677.6,1676.8,0.002]
[1693499483322,3.0,1677.3,1676.7,0.002]
[1693499483509,3.3004,1677.5,1676.6,0.002]
[1693499483821,3.0,1677.7,1676.8,3.692]
[1693499483822,0.004,1677.7,1676.8,3.692]
[1693499485502,0.004,1678.4,1677.8,0.42844534]
[1693499485823,0.004,1678.8,1677.9,0.48]
[1693499486124,0.004,1679.2,1678.3,3.692]
[1693499486316,0.004,1679.2,1678.4,0.8492]
[1693499486317,0.3044,1679.2,1678.4,0.8492]
[1693499486622,0.004,1679.1,1678.4,0.8492]
[1693499486825,0.004,1679.1,1678.5,2.9277433]
[1693499487014,0.004,1679.1,1678.6,0.48]
[1693499487325,1.20808946,1680.0,1678.7,2.9277433]
[1693499487326,0.004,1679.4,1678.7,2.9277433]
[1693499487530,0.004,1679.5,1678.8,0.48]
[1693499487727,3.0,1679.3,1678.8,0.48]
[1693499488027,3.0,1679.3,1678.6,0.28261281]
[1693499488028,0.004,1679.2,1678.6,0.28261281]
[1693499488194,3.0,1679.1,1678.6,0.28261281]
[1693499488395,0.004,1679.0,1678.1,2.7806]